[Event "Susha Chess Blitz Women 2022"]
[Site "Shusha"]
[Date "2022.09.24"]
[Round "15"]
[White "Efroimski, Marsel"]
[Black "Ozturk Orenli, Kubra"]
[Result "0-1"]
[ECO "C49"]
[WhiteElo "2462"]
[BlackElo "2319"]
[Annotator "TA"]
[PlyCount "240"]
[EventDate "2022.09.24"]
[EventType "tourn"]
[EventCountry "AZE"]
[SourceTitle "playchess.com"]
[Source "ChessBase"]
[SourceQuality "1"]
[TimeControl "180+2"]

{[%evp 18,240,13,0,6,0,0,0,2,0,0,0,0,0,0,4,10,0,0,0,0,0,0,0,0,0,20,9,26,0,43,40,52,12,54,50,133,72,168,114,176,178,238,236,238,179,174,102,143,147,189,191,182,87,200,133,346,168,160,165,191,110,110,110,109,109,124,118,397,214,206,214,205,186,178,159,214,214,214,214,217,131,131,109,109,6,8,13,13,6,6,6,6,0,6,6,6,6,8,6,8,6,16,6,7,6,8,14,14,15,27,0,0,0,0,0,14,14,239,0,7,0,0,0,0,0,0,0,0,0,0,0,0,0,12850,0,14,0,14,0,0,0,0,0,0,0,0,0,0,0,0,0,0,0,0,0,7,7,14,14,14,14,21,21,21,21,21,21,45,6,6,9,77,52,83,-12850,-27999,-27999,-27999,-27999,-27999,-27999,-27999,-27999,-27999,-27999,-27999,-27999,-27999,-27999,-27999,-27999,-27999,-27999,-27999,-27999,-27999,-27999,-27999,-27999,-27999,-27999,-27999,-27999,-27999,-27999,-27999,-27999,-27999,-27999,-27999,-27999,-27999,-27999,-27999,-27999,-27999,-27995,-27995,-27999,-27999,-27997,-27997,-27998,-27997]} 1. e4 {[%emt 0:00:00]} e5 {[%emt 0:00:00]} 2. Nf3 {[%emt 0:00:01]} Nc6 {[%emt 0:00:01]} 3. Nc3 {[%emt 0:00:01]} Nf6 {[%emt 0:00:01]} 4. Bb5 {[%emt 0:00:00]} Bb4 {[%emt 0:00:00]} 5. O-O {[%emt 0:00:03]} O-O {[%emt 0:00:01]} 6. d3 {[%emt 0:00:02]} Bxc3 {[%emt 0:00:21]} 7. bxc3 {[%emt 0:00:01]} d6 {[%emt 0:00:01]} 8. Re1 {[%emt 0:00:01]} a6 {[%emt 0:00:21]} 9. Bxc6 {[%emt 0:00:13]} bxc6 {[%emt 0:00:01][%cal Bb7c6,Bc6c5][%mdl 32]} 10. d4 {[%emt 0:00:01]} Qe7 {[%emt 0:00:22] [#] C49: Four Knights: 4 Bb5 Bb4.} 11. a4 $146 {[%emt 0:00:26]} ({Predecessor:} 11. Ba3 Nd7 12. Rb1 a5 13. c4 Rd8 14. c5 dxc5 15. Qc1 Qe6 16. dxe5 Nxe5 17. Nxe5 Qxe5 18. Rb3 {1-0 (28) Rozentalis,E (2536)-Reuker,J (2394) Hamburg 2019}) 11... a5 {[%emt 0:00:11]} 12. dxe5 {[%emt 0:00:02]} dxe5 {[%emt 0:00:01] The position is equal.} 13. Ba3 {[%emt 0:00:01]} c5 {[%emt 0:00:00]} 14. Qd3 {[%emt 0:00:14]} Ba6 {[%emt 0:00:05]} 15. Qe3 {[%emt 0:00:01]} Nd7 {[%emt 0:00:04]} 16. Nd2 {[%emt 0:00:02]} Rfb8 {[%emt 0:00:41]} 17. Nb3 {[%emt 0:00:03]} Bc4 {[%emt 0:00:04]} 18. Nxc5 {[%emt 0:00:21]} Nxc5 {[%emt 0:00:04]} 19. Bxc5 {[%emt 0:00:01]} Qe6 {[%emt 0:00:01]} 20. Ba3 {[%emt 0:00:32]} h6 {[%emt 0:00:18]} 21. Qc5 {[%emt 0:00:04]} Rc8 {[%emt 0:00:36]} 22. Rab1 {[%emt 0:00:10]} Kh7 {[%emt 0:00:08]} 23. Red1 {[%emt 0:00:13]} Ba2 {[%emt 0:00:07]} 24. Rb5 {[%emt 0:00:05]} Rd8 {[%emt 0:00:02][%cal Rd8d1]} 25. Re1 {[%emt 0:00:06]} Qg6 {[%emt 0:00:11][%cal Og6e4]} 26. Qxe5 {[%emt 0:00:07]} c6 {[%emt 0:00:05] [#]} (26... Be6 $14) 27. Rc5 {[%emt 0:00:17]} (27. Rxa5 $6 Re8 28. Qh5 Rxa5 29. Qxa5 Rxe4 30. Rxe4 Qxe4 $11) (27. Rb2 $142 $1 {[%cal Rb2a2]} Bc4 28. Be7) 27... Re8 {[%emt 0:00:04]} (27... Rd2 $16) 28. Qf5 {[%emt 0:00:06]} ({White should try} 28. Qf4 $18) 28... Rad8 {[%emt 0:00:02]} (28... Qxf5 $16 29. Rxf5 Red8) 29. Qxg6+ $18 {[%emt 0:00:02]} (29. Rxa5 Qxf5 30. Rxf5 {[#]} Rxe4 $1 $11) 29... fxg6 {[%emt 0:00:01]} (29... Kxg6 {keeps fighting.} 30. f3 (30. Rxc6+ Re6 $16) (30. Rxa5 Rxe4 31. Rc1 Be6 $16) 30... Rd2) 30. f3 {[%emt 0:00:10]} ({Inferior is} 30. Rxc6 Rxe4 31. Rc1 Rxa4 $11) 30... Rd2 {[%emt 0:00:02]} 31. Rxc6 {[%emt 0:00:06]} Rxc2 {[%emt 0:00:00]} 32. e5 {[%emt 0:00:04]} (32. Rc1 $18 Rd2 33. Bd6) 32... Rd8 {[%emt 0:00:06]} 33. Bd6 {[%emt 0:00:02]} Bd5 {[%emt 0:00:03]} 34. Rc5 {[%emt 0:00:02][%csl LRa5,LRd5]} Be6 {[%emt 0:00:02]} 35. Rc7 {[%emt 0:00:05]} (35. Rxa5 $18 {Black must now prevent Ra7.} g5 36. Ra7) 35... Re8 {[%emt 0:00:02]} (35... Rb8 $16 36. Rxg7+ (36. Re7 Rbb2 $11) 36... Kxg7 37. Bxb8 Rxc3) 36. h4 {[%emt 0:00:04]} Bb3 $2 {[%emt 0:00:01]} (36... g5 $16 {was necessary.}) 37. Rc5 {[%emt 0:00:03]} (37. Rb1 $142 Be6 38. Rbb7) 37... Bxa4 {[%emt 0:00:02]} 38. e6 {[%emt 0:00:01]} Bb3 {[%emt 0:00:02]} 39. Rxa5 {[%emt 0:00:02]} (39. Rc7 $18) 39... Rxe6 $16 {[%emt 0:00:01]} 40. Rxe6 {[%emt 0:00:05]} Bxe6 $18 {[%emt 0:00:01][%mdl 4096] Endgame KRB-KRB} 41. Be5 {[%emt 0:00:01]} Re2 {[%emt 0:00:02]} 42. Bd4 {[%emt 0:00:01]} g5 $2 {[%emt 0:00:02][%mdl 8192]} (42... Bf7 $16 43. Ra7 Kg8) 43. hxg5 {[%emt 0:00:02]} (43. Ra7 $142 Kg8 44. Rxg7+ Kf8 45. hxg5 hxg5 46. Rxg5) 43... hxg5 {[%emt 0:00:01]} 44. Ra7 {[%emt 0:00:01]} Kg6 {[%emt 0:00:01]} 45. Rxg7+ {[%emt 0:00:02]} Kf5 {[%emt 0:00:01]} 46. Kh2 {[%emt 0:00:04]} Bd5 {[%emt 0:00:01]} (46... Rc2 $16 47. Be3 Rxc3) 47. Kg3 {[%emt 0:00:01]} Rc2 {[%emt 0:00:02]} 48. Rd7 {[%emt 0:00:05]} Bc4 {[%emt 0:00:00]} 49. Rc7 {[%emt 0:00:02]} Bf1 {[%emt 0:00:02]} 50. Rc5+ {[%emt 0:00:02]} Kg6 {[%emt 0:00:01]} 51. f4 {[%emt 0:00:08]} (51. Rc6+ $16 Kf7 52. Bf2) 51... gxf4+ {[%emt 0:00:02]} (51... Rxg2+ {is interesting.} 52. Kf3 gxf4 53. Ra5 Rg5) 52. Kxf4 {[%emt 0:00:01]} (52. Kf3 {with more complications.} Rxg2 53. Ra5 Rg5 54. Ra1) 52... Rxg2 {[%emt 0:00:03]} 53. Rc8 {[%emt 0:00:02]} Kf7 {[%emt 0:00:02]} 54. Ke5 {[%emt 0:00:02]} Re2+ {[%emt 0:00:02]} 55. Kd6 {[%emt 0:00:01]} Bh3 {[%emt 0:00:03]} 56. Rc7+ {[%emt 0:00:02]} Ke8 {[%emt 0:00:02]} 57. Rh7 {[%emt 0:00:02]} Bf5 {[%emt 0:00:02]} 58. Rh8+ {[%emt 0:00:04]} Kf7 {[%emt 0:00:00]} 59. Rh4 {[%emt 0:00:05]} Re6+ {[%emt 0:00:02]} 60. Kc5 {[%emt 0:00:01]} Be4 {[%emt 0:00:08]} 61. Kb4 {[%emt 0:00:02]} Bf5 {[%emt 0:00:04]} 62. Rf4 {[%emt 0:00:02]} Kg6 {[%emt 0:00:01]} 63. Rf2 {[%emt 0:00:04]} Re1 {[%emt 0:00:03]} 64. c4 {[%emt 0:00:01]} Rb1+ {[%emt 0:00:03]} 65. Kc5 {[%emt 0:00:02]} Rc1 {[%emt 0:00:01]} 66. Kd5 {[%emt 0:00:06]} Rd1 {[%emt 0:00:03]} 67. c5 {[%emt 0:00:02] And now c6 would win.} Bc8 $2 {[%emt 0:00:03]} (67... Bd7 $11) 68. Rf6+ $2 {[%emt 0:00:02]} (68. c6 $18) 68... Kg5 $11 {[%emt 0:00:01]} 69. Rf8 {[%emt 0:00:01]} Bb7+ {[%emt 0:00:01]} 70. Kc4 {[%emt 0:00:01]} Ba6+ {[%emt 0:00:02]} 71. Kd5 {[%emt 0:00:01]} Bb7+ {[%emt 0:00:00]} 72. Ke5 {[%emt 0:00:01]} Re1+ {[%emt 0:00:03]} 73. Kd6 {[%emt 0:00:01]} Rd1 {[%emt 0:00:01]} 74. Kc7 {[%emt 0:00:05]} Be4 {[%emt 0:00:01]} 75. Be5 {[%emt 0:00:02]} Rc1 $2 {[%emt 0:00:02][%mdl 8192]} (75... Rd5 $11) 76. Bd6 $2 {[%emt 0:00:01]} ({Only move:} 76. Bf4+ $18 Kg6 77. Bxc1) 76... Rc2 {[%emt 0:00:02]} 77. Rf1 {[%emt 0:00:04]} Bd5 {[%emt 0:00:03]} 78. Rg1+ {[%emt 0:00:01]} Kf5 {[%emt 0:00:01]} 79. Re1 {[%emt 0:00:01] aiming for Re5+.} Be4 {[%emt 0:00:01]} 80. Rf1+ {[%emt 0:00:02]} Ke6 {[%emt 0:00:01]} 81. Rf8 {[%emt 0:00:02]} Bd5 {[%emt 0:00:04]} 82. Re8+ {[%emt 0:00:01]} Kf7 {[%emt 0:00:02]} 83. Re5 {[%emt 0:00:02]} Bg2 {[%emt 0:00:01]} 84. Re3 {[%emt 0:00:04]} Bd5 {[%emt 0:00:02]} 85. Rd3 {[%emt 0:00:02]} Ke6 {[%emt 0:00:01]} 86. Re3+ {[%emt 0:00:02]} Kf7 {[%emt 0:00:01]} 87. Kd7 {[%emt 0:00:02]} Rc4 {[%emt 0:00:04]} 88. Re5 {[%emt 0:00:02]} Bg2 {[%emt 0:00:03]} 89. Rf5+ {[%emt 0:00:01]} Kg6 {[%emt 0:00:00]} 90. Rf8 {[%emt 0:00:03]} Bh3+ {[%emt 0:00:02]} 91. Ke7 {[%emt 0:00:03]} Re4+ {[%emt 0:00:03]} 92. Kd8 {[%emt 0:00:01]} Rc4 {[%emt 0:00:02]} 93. Rf3 {[%emt 0:00:04]} Bf5 {[%emt 0:00:02]} 94. Kc7 {[%emt 0:00:02]} Be4 {[%emt 0:00:05]} (94... Kf6 $11 {remains equal.}) 95. Rf2 {[%emt 0:00:01]} Rc2 {[%emt 0:00:03]} 96. Be7 $2 {[%emt 0:00:02][%mdl 8192]} Rxf2 $19 {[%emt 0:00:01]} 97. Bd6 {[%emt 0:00:03] Black mates.} Rc2 {[%emt 0:00:02]} 98. Kb6 {[%emt 0:00:01]} Kf7 {[%emt 0:00:00]} 99. Kc7 {[%emt 0:00:01]} Ke6 {[%emt 0:00:01]} 100. Kd8 {[%emt 0:00:01]} Ra2 {[%emt 0:00:03]} 101. Kc7 {[%emt 0:00:01]} Ra7+ {[%emt 0:00:02]} 102. Kb6 {[%emt 0:00:01]} Rb7+ {[%emt 0:00:01]} 103. Ka6 {[%emt 0:00:00]} Kd7 {[%emt 0:00:01]} 104. Ka5 {[%emt 0:00:01]} Kc6 {[%emt 0:00:01]} 105. Ka4 {[%emt 0:00:01]} Bd5 {[%emt 0:00:02]} 106. Ka3 {[%emt 0:00:02]} Kb5 {[%emt 0:00:04]} 107. Kb2 {[%emt 0:00:01]} Kc4+ {[%emt 0:00:01]} 108. Kc2 {[%emt 0:00:00]} Rf7 {[%emt 0:00:02]} 109. Kd2 {[%emt 0:00:01]} Kd4 {[%emt 0:00:02]} 110. Ke2 {[%emt 0:00:01]} Bc4+ {[%emt 0:00:01]} 111. Kd2 {[%emt 0:00:01]} Rf2+ {[%emt 0:00:02]} 112. Ke1 {[%emt 0:00:01]} Re2+ {[%emt 0:00:00]} 113. Kf1 {[%emt 0:00:01]} Bb5 {[%emt 0:00:03]} 114. Kg1 {[%emt 0:00:03]} Ke4 {[%emt 0:00:01]} 115. Kf1 {[%emt 0:00:06]} Kf3 {[%emt 0:00:01]} 116. Kg1 {[%emt 0:00:01]} Rf2 {[%emt 0:00:03]} 117. c6 {[%emt 0:00:04]} Bxc6 {[%emt 0:00:04]} 118. Bg3 {[%emt 0:00:04]} Rg2+ {[%emt 0:00:01]} 119. Kh1 {[%emt 0:00:01]} Rxg3 {[%emt 0:00:01]} 120. Kh2 {[%emt 0:00:00]} Rg2+ {[%emt 0:00:01] A wild game.  Weighted Error Value: White=0.25 (precise) /Black=0.33} 0-1

[Event "Susha Chess Blitz Women 2022"]
[Site "Shusha"]
[Date "2022.09.24"]
[Round "15"]
[White "Arabidze, Meri"]
[Black "Dzagnidze, Nana"]
[Result "0-1"]
[ECO "A07"]
[WhiteElo "2422"]
[BlackElo "2526"]
[Annotator "TA"]
[PlyCount "56"]
[EventDate "2022.09.24"]
[EventType "tourn"]
[EventCountry "AZE"]
[SourceTitle "playchess.com"]
[Source "ChessBase"]
[SourceQuality "1"]
[TimeControl "180+2"]

{[%evp 11,56,10,14,4,0,-14,0,-33,-12,-14,2,-32,-8,-8,0,6,0,-120,-107,-170,-165,-141,-165,-274,-249,-271,-242,-226,-203,-212,-199,-307,-300,-395,-413,-529,-456,-427,-427,-464,-427,-589,-512,-1023,-989,-2202,-2122]} 1. Nf3 {[%emt 0:00:01]} Nf6 {[%emt 0:00:01]} 2. g3 {[%emt 0:00:01]} d5 {[%emt 0:00:04]} 3. Bg2 {[%emt 0:00:01]} c6 {[%emt 0:00:00]} 4. O-O {[%emt 0:00:03]} Bg4 {[%emt 0:00:01]} 5. d3 {[%emt 0:00:02]} Nbd7 {[%emt 0:00:13]} 6. h3 {[%emt 0:00:01]} Bh5 {[%emt 0:00:16]} 7. Qe1 {[%emt 0:00:01] 7.c4 might become the main line. A07: Réti Opening: New York and Capablanca Systems.} e6 {[%emt 0:00:32]} 8. Nh4 {[%emt 0:00:04] [#]} Bc5 $146 {[%emt 0:00:15]} ({Predecessor:} 8... Qb6 9. a4 Bc5 10. Kh1 a5 11. f4 Be3 12. Bxe3 Qxe3 13. g4 Bg6 14. Qf2 Qxf2 15. Rxf2 Nc5 16. Nd2 Ke7 17. Ndf3 Nfd7 18. Nd4 f6 19. f5 Bf7 {½-½ (19) Das,A (2439)-Pruijssers,R (2534) Leiden 2019}) 9. b4 {[%emt 0:00:13] The position is equal.} Bb6 {[%emt 0:00:13]} 10. Bb2 {[%emt 0:00:28]} Qe7 {[%emt 0:00:02]} 11. e3 {[%emt 0:00:23]} g5 {[%emt 0:00:16]} 12. Nf3 {[%emt 0:00:01]} g4 {[%emt 0:00:02]} 13. hxg4 {[%emt 0:00:07]} Bxg4 {[%emt 0:00:00]} 14. Ne5 {[%emt 0:00:29] [#]} (14. Nh4 $11) 14... Rg8 $1 $17 {[%emt 0:00:03]} 15. Bd4 {[%emt 0:00:28]} (15. b5 $17 {keeps fighting.}) 15... Nxe5 $19 {[%emt 0:00:34]} 16. Bxe5 {[%emt 0:00:02]} h5 {[%emt 0:00:01][%cal Bh7h5,Bh5h4][%mdl 32]} 17. c4 {[%emt 0:00:18]} (17. Nd2 {was necessary.}) 17... Nd7 {[%emt 0:00:04]} 18. Bd4 {[%emt 0:00:16]} h4 {[%emt 0:00:07] [#] Hoping for ...h3.} 19. Nd2 {[%emt 0:00:17]} Bc7 {[%emt 0:00:24] ...0-0-0 is the strong threat.} 20. cxd5 {[%emt 0:00:01]} exd5 {[%emt 0:00:03] Threatens to win with ...0-0-0.} 21. f4 {[%emt 0:00:04]} (21. e4 {is a better defense.} Be6 22. Rc1 (22. exd5 cxd5 23. Nf3 hxg3 $17) 22... hxg3 23. exd5 gxf2+ 24. Rxf2 Bxd5 25. Kf1 Bxg2+ 26. Rxg2 Rxg2 27. Qxe7+ Kxe7 28. Re1+ Kf8 29. Kxg2) 21... hxg3 {[%emt 0:00:02]} ({And not} 21... Qxb4 22. Rb1 Qa4 23. Rc1 $17 (23. Rxb7 $2 Bb6 $19)) 22. Qxg3 {[%emt 0:00:05]} O-O-O {[%emt 0:00:02]} ({Don't blunder} 22... Qxb4 $2 23. Nf3 $19) 23. Qh2 {[%emt 0:00:12]} Be2 {[%emt 0:00:04] Black is clearly winning.} 24. Rf2 {[%emt 0:00:01]} Bxd3 {[%emt 0:00:02]} 25. a3 {[%emt 0:00:06]} f6 {[%emt 0:00:05]} 26. Nb3 {[%emt 0:00:05]} Rh8 {[%emt 0:00:05]} 27. Qg3 {[%emt 0:00:01]} (27. Bh3 $142 Bb6 28. Bxb6 axb6 29. Rf3) 27... Rdg8 {[%emt 0:00:02]} 28. Qf3 {[%emt 0:00:02]} Qh7 {[%emt 0:00:01] Weighted Error Value: White=0.97/Black=0.19 (very precise)} 0-1

[Event "Susha Chess Blitz Women 2022"]
[Site "Shusha"]
[Date "2022.09.24"]
[Round "15"]
[White "Fataliyeva, Ulviyya"]
[Black "Mammadzada, Gunay"]
[Result "1-0"]
[ECO "A06"]
[WhiteElo "2408"]
[BlackElo "2473"]
[Annotator "TA"]
[PlyCount "57"]
[EventDate "2022.09.24"]
[EventType "tourn"]
[EventCountry "AZE"]
[SourceTitle "playchess.com"]
[Source "ChessBase"]
[SourceQuality "1"]
[TimeControl "180+2"]

{[%evp 9,57,12,16,12,9,12,14,2,28,-34,-29,-22,-19,-35,-27,-29,-28,-58,-39,-62,-57,-89,-93,-156,324,302,312,301,366,309,316,286,290,290,292,295,294,294,290,283,318,318,325,316,549,416,372,405,563,524]} 1. Nf3 {[%emt 0:00:01]} d5 {[%emt 0:00:02]} 2. g3 {[%emt 0:00:00]} c6 {[%emt 0:00:02]} 3. Bg2 {[%emt 0:00:01]} Bg4 {[%emt 0:00:01]} 4. O-O {[%emt 0:00:02]} e6 {[%emt 0:00:03]} 5. d4 {[%emt 0:00:03]} Nf6 {[%emt 0:00:06]} 6. h3 {[%emt 0:00:03] D02: 1 d4 d5 2 Nf3 sidelines, including 2...Nf6 3 g3 and 2...Nf6 3 Bf4.} Bh5 {[%emt 0:00:01][%cal Bg4h5,Bh5g6,Bg6c2][%mdl 32]} 7. Nbd2 {[%emt 0:00:03]} Be7 {[%emt 0:00:01]} 8. c4 {[%emt 0:00:02] The position is equal.} O-O {[%emt 0:00:03] [#]} 9. cxd5 $146 {[%emt 0:00:01]} ({White should try} 9. g4 $11 Bg6 10. Ne5) ({Predecessor:} 9. g4 Bg6 10. Ne5 Nfd7 11. Nxg6 hxg6 12. e3 Na6 13. a3 Nc7 14. b3 a5 15. Bb2 {0-1 (48) Moser,G (2306)-Acs,P (2586) Austria 2019}) 9... cxd5 $15 {[%emt 0:00:06]} 10. Qb3 {[%emt 0:00:07]} Qc7 {[%emt 0:00:05]} 11. g4 {[%emt 0:00:05]} Bg6 {[%emt 0:00:01]} 12. Ne5 {[%emt 0:00:05]} Bc2 {[%emt 0:00:18]} 13. Qg3 {[%emt 0:00:07]} Nc6 {[%emt 0:00:21]} 14. Nxc6 {[%emt 0:00:22]} Qxc6 {[%emt 0:00:03]} 15. Nf3 {[%emt 0:00:07]} Ne4 {[%emt 0:00:25]} 16. Qh2 {[%emt 0:00:09]} ({White should play} 16. Qf4) 16... Qb5 $2 {[%emt 0:00:32] Loses the game.} (16... Qb6 $17 {Strongly threatening ...Rac8.} 17. Qf4 Rac8) 17. Qc7 $1 $18 {[%emt 0:00:26][%csl LRc2,LRe7]} Qxe2 {[%emt 0:00:50] [#] Threatens to win with ...Bd6.} 18. Qxe7 {[%emt 0:00:03]} Bd3 {[%emt 0:00:02]} 19. Qb4 {[%emt 0:00:28]} ({Don't do} 19. Qxb7 Ba6 20. Qb3 f5 $18) 19... a5 {[%emt 0:00:12]} 20. Qe1 {[%emt 0:00:42]} ({But not} 20. Qxb7 Ba6 21. Qb3 Rfc8 $18) 20... Qc2 {[%emt 0:00:01]} 21. Qd1 {[%emt 0:00:01]} Rac8 {[%emt 0:00:22]} 22. Qxc2 {[%emt 0:00:01]} Rxc2 {[%emt 0:00:01]} 23. Ne1 {[%emt 0:00:11][%csl LRc2,LRd3]} Bxf1 {[%emt 0:00:03]} 24. Nxc2 {[%emt 0:00:01]} Bd3 {[%emt 0:00:04]} 25. Ne1 {[%emt 0:00:04]} Ba6 {[%emt 0:00:01]} 26. f3 {[%emt 0:00:08]} Ng3 {[%emt 0:00:02] [#]} (26... Nd6 27. Bf4 Nb5) 27. Be3 {[%emt 0:00:04]} f5 {[%emt 0:00:01]} 28. Kf2 {[%emt 0:00:05]} Ne2 {[%emt 0:00:05]} 29. Bf1 {[%emt 0:00:07] Weighted Error Value: White=0.28 (precise) /Black=0.52} 1-0

[Event "Susha Chess Blitz Women 2022"]
[Site "Shusha"]
[Date "2022.09.24"]
[Round "15"]
[White "Balajayeva, Khanim"]
[Black "Zawadzka, Jolanta"]
[Result "1-0"]
[ECO "B90"]
[WhiteElo "2379"]
[BlackElo "2401"]
[Annotator "TA"]
[PlyCount "41"]
[EventDate "2022.09.24"]
[EventType "tourn"]
[EventCountry "AZE"]
[SourceTitle "playchess.com"]
[Source "ChessBase"]
[SourceQuality "1"]
[TimeControl "180+2"]

{[%evp 12,41,26,21,36,42,50,41,42,49,89,37,65,45,112,110,283,95,246,114,117,118,119,129,228,171,659,668,637,631,570,566]} 1. e4 c5 2. Nf3 {[%emt 0:00:02]} d6 {[%emt 0:00:02]} 3. d4 {[%emt 0:00:01]} cxd4 {[%emt 0:00:01]} 4. Nxd4 {[%emt 0:00:00]} Nf6 {[%emt 0:00:01]} 5. Nc3 {[%emt 0:00:02]} a6 {[%emt 0:00:02]} 6. h3 {[%emt 0:00:05]} e6 {[%emt 0:00:02]} 7. g4 {[%emt 0:00:01][%cal Bg2g4,Bg4g5][%mdl 32]} Be7 {[%emt 0:00:02] B81: Sicilian Scheveningen: Keres Attack.} 8. g5 {[%emt 0:00:04]} Nfd7 {[%emt 0:00:01]} 9. h4 {[%emt 0:00:01]} Nc6 {[%emt 0:00:02] White is slightly better.} 10. Be3 {[%emt 0:00:03]} Qc7 {[%emt 0:00:16]} 11. Be2 {[%emt 0:00:15]} (11. f4 $16) 11... O-O {[%emt 0:00:04]} 12. h5 {[%emt 0:00:04] [#]} Nxd4 $146 {[%emt 0:00:28]} ({Black should play} 12... Na5 $14) ({Predecessor:} 12... b5 13. Nxc6 Qxc6 14. Qd4 Re8 15. h6 Bf8 16. O-O-O g6 17. a4 Rb8 18. axb5 axb5 {0-1 (50) Freitag,T-Emonot,P IECG email 1996}) 13. Qxd4 $16 {[%emt 0:00:02] aiming for h6.} f6 $2 {[%emt 0:00:11] [#]} (13... Qc5 $16) 14. Rg1 $2 {[%emt 0:00:36]} (14. g6 $1 $18 {is the precise move to win.}) 14... Kh8 $2 {[%emt 0:00:21]} (14... fxg5 $16 15. Bxg5 Nf6) 15. h6 {[%emt 0:00:05]} (15. g6 $18 {and White stays clearly on top.}) 15... g6 {[%emt 0:00:05]} 16. O-O-O {[%emt 0:00:12]} b5 {[%emt 0:00:35] [#]} 17. f4 $1 $36 {[%emt 0:00:07][%mdl 2048] Keeping Black busy. White has more active pieces. The black rooks are badly placed.} Nc5 {[%emt 0:00:23]} (17... Bb7 $16) 18. f5 {[%emt 0:00:11]} exf5 $2 {[%emt 0:00:15]} (18... e5 19. Qd2 Bb7) 19. Nd5 $18 {[%emt 0:00:02][%csl LRc7,LRf6] White is clearly winning.} Qd8 {[%emt 0:00:01]} 20. gxf6 {[%emt 0:00:08]} Bxf6 {[%emt 0:00:28]} 21. Nxf6 {[%emt 0:00:04] Weighted Error Value: White=0.34/Black=0.93} 1-0